Cogmind - Beta 13 @@@ ROGUE MODE // 2024.04.02 @ 15:32:30 Player: VC94 Result: Destroyed by G-34 Mercenary with Small Laser Performance ------------- Evolutions (1) 500 Regions Visited (3) 600 Robots Destroyed (23) 115 Value Destroyed (782) 782 Prototype IDs (2) 40 Alien Tech Used (0) 0 Bonus (0) 0 TOTAL SCORE: 2037 Bonus ------- None Cogmind --------- Core Integrity 0/400 Matter 269/300 Energy 100/100 System Corruption 0% Temperature Cool (6) Movement Core (200) Ox3 Location -9/Materials Parts ------- > --- POWER (1) -------- (None) > --- PROPULSION (3) --- (None) > --- UTILITY (3) ------ Medium Storage Unit Visual Processing Unit > --- WEAPON (2) ------- (None) > --- INVENTORY (10) --- Aluminum Leg Aluminum Leg Aluminum Leg Sensor Array Experimental Sensor Array Peak State ------------ > --- POWER ------------ Ion Engine > --- PROPULSION ------- Light Treads Light Treads Light Treads > --- UTILITY ---------- Medium Storage Unit Visual Processing Unit Light Armor Plating > --- WEAPON ----------- Medium Laser Improved Assault Rifle > --- INVENTORY -------- Aluminum Leg Sensor Array Experimental Sensor Array Grenade Launcher [Rating: 13] Favorites ----------- Power Light Ion Engine Engine Light Ion Engine Propulsion Aluminum Leg Treads Light Treads Leg Aluminum Leg Utility Sensor Array Device Sensor Array Storage Medium Matter Pod Processor Visual Processing Unit Protection Light Armor Plating Weapon Light Assault Rifle Energy Gun Medium Laser Ballistic Gun Light Assault Rifle Launcher Grenade Launcher Build | -11 -10 -10 -9 ------- Run | Yrd Mat Min Mat Slots Evolved 2 | . . . 2 Power . | . . . . Propulsion 1 | . . . 1 Utility 1 | . . . 1 Weapon . | . . . . Parts Attached 37 | 6 8 3 20 Power 4 | 1 . 1 2 Engine 4 | 1 . 1 2 Core . | . . . . Reactor . | . . . . Propulsion 7 | 2 . 1 4 Treads 3 | . . . 3 Leg 4 | 2 . 1 1 Wheel . | . . . . Hover . | . . . . Flight . | . . . . Utility 14 | 1 4 1 8 Device 8 | 1 3 1 3 Storage 2 | . 1 . 1 Processor 1 | . . . 1 Hackware . | . . . . Protection 3 | . . . 3 Artifact . | . . . . Weapon 12 | 2 4 . 6 Energy Gun 4 | 2 1 . 1 Energy Cannon . | . . . . Ballistic Gun 6 | . 2 . 4 Ballistic Cannon . | . . . . Launcher 2 | . 1 . 1 Special Weapon . | . . . . Impact Weapon . | . . . . Slashing Weapon . | . . . . Piercing Weapon . | . . . . Special Melee Weapon . | . . . . Unidentified Prototypes . | . . . . Parts Lost 15 | . . 2 13 Power 3 | . . 1 2 Propulsion 5 | . . 1 4 Utility 2 | . . . 2 Weapon 5 | . . . 5 Highest Loss Streak 8 | . . 1 8 To Critical Strikes 1 | . . . 1 Average Slot Usage (%) 88 | . 91 96 85 Engine 10 | . 14 11 8 Treads 8 | . . . 16 Leg 17 | . 28 27 7 Device 10 | . 14 14 7 Storage 9 | . 6 14 11 Processor 5 | . . . 9 Protection 1 | . . . 3 Energy Gun 9 | . 22 . 4 Ballistic Gun 14 | . 3 28 16 Naked Turns . | . . . . Heaviest Build 23 | 7 9 10 23 Greatest Support 60 | 20 20 20 60 Greatest Overweight (x) 4 | . . . 4 Average Overweight (x) . | . . . . Largest Inventory Capacity 10 | 5 5 5 10 Average Capacity 6 | 5 5 5 8 Most Carried 7 | 5 5 5 7 Average Carried 4 | 2 4 4 4 Final Capacity 10 | 5 5 5 10 Final Carried 5 | 4 5 5 5 Class Distribution -------------------- 57% | Mutant 42% | Scavenger-Mutant Dominant Class ---------------- Mutant | -10/Materials Mutant | -10/Mines Scavenger-Mutant | -9/Materials Resources | -11 -10 -10 -9 ----------- Run | Yrd Mat Min Mat Matter Collected 797 | 250 70 159 318 Remotely . | . . . . Salvage Created 876 | 45 162 140 529 Parts 46 | 3 5 13 25 Haulers Intercepted . | . . . . Recyclers Shooed 1 | . . 1 . Parts Field Recycled . | . . . . Retrieved Matter . | . . . . Parts Self-Destructed . | . . . . Prevented . | . . . . Kills | -11 -10 -10 -9 ------- Run | Yrd Mat Min Mat Combat Hostiles Destroyed 22 | 1 5 5 11 Guns 16 | 1 2 5 8 AOE 5 | . 3 . 2 Classes Destroyed 4 | 1 . 1 2 Watcher 1 | . . . 1 Swarmer 3 | . . 3 . Grunt 15 | 1 5 2 7 Sentry 4 | . . . 4 Best Kill Streak 5 | 1 3 5 3 Combat Bots Only 5 | 1 3 5 3 Max Kills in Single Turn 2 | 1 1 1 2 Gunslinging . | . . . . Exploded 2 | . 1 . 2 Melee . | . . . . Uniques/NPCs Destroyed . | . . . . Combat | -11 -10 -10 -9 -------- Run | Yrd Mat Min Mat Hostile Shots Fired 220 | 3 15 25 177 Missed 70 | 2 5 8 55 Damage Taken 1972 | 12 154 196 1610 Core 495 | 12 55 24 404 Absorbed by Shields . | . . . . Regen/Repaired (Parts) 16 | . 16 . . Core Remaining (%) 79 | 95 . 63 . Volleys Fired 92 | 2 14 18 58 Largest 2 | 2 2 2 2 Hottest 90 | 90 90 40 73 Shots Fired 170 | 4 22 36 108 Gun 165 | 4 19 36 106 Cannon . | . . . . Launcher 5 | . 3 . 2 Special . | . . . . Kinetic 114 | . 2 36 76 Thermal 51 | 4 17 . 30 Explosive 5 | . 3 . 2 Electromagnetic . | . . . . Robot Hit Streak 15 | 4 6 8 15 Robot Miss Streak 3 | . 3 2 2 Penetration Max . | . . . . Secondary Targets 4 | . . 2 2 Max Gunslinging Chain 1 | . . 1 1 Shots Hit Robots 121 | 4 12 25 80 Core Hits 52 | 2 10 10 30 Critical Kills . | . . . . Critical Parts Destroyed . | . . . . Critical Strikes 1 | . 1 . . Burn 1 | . 1 . . Melee Attacks . | . . . . Impact . | . . . . Slashing . | . . . . Piercing . | . . . . Sneak Attacks . | . . . . Combat Hostiles . | . . . . Follow-up Attacks . | . . . . Damage Inflicted 1653 | 47 295 197 1114 Guns 1280 | 47 121 197 915 Cannons . | . . . . Explosions 373 | . 174 . 199 Melee . | . . . . Ramming . | . . . . Kinetic 853 | . . 197 656 Thermal 427 | 47 121 . 259 Explosive 373 | . 174 . 199 Electromagnetic . | . . . . Impact . | . . . . Slashing . | . . . . Piercing . | . . . . Highest Corruption 1 | . 1 1 . Average Corruption 1 | . 1 1 . Corruption Purged . | . . . . Corruption Blocked . | . . . . Effects 3 | . . 3 . Matter Fused 1 | . . 1 . Energy Discharges 1 | . . 1 . Data Loss (minor) 1 | . . 1 . Overload Shots . | . . . . Overflow Damage . | . . . . Projectiles . | . . . . Explosions . | . . . . Melee . | . . . . Knockbacks . | . . . . Impact . | . . . . Kinetic . | . . . . Secondary . | . . . . Self-Inflicted Damage 77 | . 46 . 31 Shots 5 | . 3 . 2 Rammed . | . . . . Targets Rammed . | . . . . Kicked . | . . . . Crushed . | . . . . Highest Temperature 96 | 66 30 4 96 Average Temperature 31 | 37 9 2 37 Received Heat Transfer 897 | 6 60 84 747 Siege Activations . | . . . . Robots Corrupted . | . . . . Combat Hostiles . | . . . . Parts Fried . | . . . . Impact Corruptions . | . . . . Robots Melted 1 | . . . 1 Combat Hostiles 1 | . . . 1 Parts Melted 4 | 2 2 . . Heat Transferred 1309 | 124 408 . 777 Parts Sabotaged . | . . . . Parts Stolen . | . . . . Parts Stripped . | . . . . Power Chain Reactions . | . . . . Alert | -11 -10 -10 -9 ------- Run | Yrd Mat Min Mat Peak Influence 202 | 20 202 121 172 Initial 46 | . 13 6 46 Average 75 | 3 100 29 84 Maximum Alert Level 1 | . 1 . . Low Security (%) 99 | 100 98 100 100 Level 1 . | . 1 . . Level 2 . | . . . . Level 3 . | . . . . Level 4 . | . . . . Level 5 . | . . . . High Security . | . . . . Max Security . | . . . . Squads Dispatched 4 | . 2 . 2 Investigation 3 | . 2 . 1 Extermination . | . . . . Reinforcement 1 | . . . 1 Assault . | . . . . Garrison . | . . . . Intercept . | . . . . Searches Triggered . | . . . . Construction Impeded . | . . . . Haulers Reinforced . | . . . . Active Scanning Responses . | . . . . Cargo Convoy Interrupts . | . . . . Stealth | -11 -10 -10 -9 --------- Run | Yrd Mat Min Mat Distress Signals 3 | . 1 . 2 Communications Jammed . | . . . . Distress Signals . | . . . . Times Spotted 35 | 1 11 5 18 Peak Tracking Total 7 | 1 4 3 7 Tactical Retreats 1 | . 1 . . Traps | -11 -10 -10 -9 ------- Run | Yrd Mat Min Mat Traps Triggered 2 | . 1 . 1 Indirectly . | . . . . Trap Hack Attempts . | . . . . Triggered . | . . . . Disarmed . | . . . . Reprogrammed . | . . . . Reused . | . . . . Traps Extracted . | . . . . Installed . | . . . . Triggered . | . . . . Machines | -11 -10 -10 -9 ---------- Run | Yrd Mat Min Mat Machines Disabled 2 | . . . 2 Max in Single Turn 1 | . . . 1 Machines Repaired . | . . . . Machines Dismantled . | . . . . Machines Sabotaged . | . . . . Overloaded Fab Kills . | . . . . Hacking | -11 -10 -10 -9 --------- Run | Yrd Mat Min Mat Machines Accessed 8 | . 6 . 2 Terminals 5 | . 4 . 1 Fabricators . | . . . . Repair Stations 1 | . 1 . . Recycling Units 1 | . 1 . . Scanalyzers 1 | . . . 1 Garrison Access . | . . . . Total Hacks 31 | . 21 . 10 Successful 20 | . 14 . 6 Failed 11 | . 7 . 4 Catastrophic 1 | . . . 1 Database Lockouts . | . . . . Manual . | . . . . Terminals 15 | . 12 . 3 Fabricators . | . . . . Repair Stations 4 | . 4 . . Recycling Units 5 | . 5 . . Scanalyzers 7 | . . . 7 Garrison Access . | . . . . Terminal Hacks 8 | . 6 . 2 Record 4 | . 2 . 2 Alert Level 2 | . 2 . . Locate Traps 1 | . 1 . . Dispatch Records 1 | . 1 . . Fabricator Hacks . | . . . . Repair Station Hacks 4 | . 4 . . Scan Component 2 | . 2 . . Repair 2 | . 2 . . Recycling Unit Hacks 4 | . 4 . . Recycle Component 1 | . 1 . . Process 2 | . 2 . . Retrieve Components 1 | . 1 . . Scanalyzer 4 | . . . 4 Insert Component 2 | . . . 2 Analyze 2 | . . . 2 Garrison Access Hacks . | . . . . Unauthorized Hacks . | . . . . Terminals . | . . . . Fabricators . | . . . . Repair Stations . | . . . . Recycling Units . | . . . . Scanalyzers . | . . . . Garrison Access . | . . . . Data Cores Recovered . | . . . . Used . | . . . . Hacking Detections 6 | . 5 . 1 Full Trace Events 4 | . 4 . . Feedback Events . | . . . . Feedback Blocked . | . . . . Robot Schematics Acquired . | . . . . Robots Built . | . . . . Authchips . | . . . . Time . | . . . . Total Robot Build Rating . | . . . . Part Schematics Acquired 1 | . . . 1 Parts Built . | . . . . Authchips . | . . . . Time . | . . . . Total Part Build Rating . | . . . . Parts Repaired 2 | . 2 . . Time 52 | . 52 . . Parts Recycled 1 | . 1 . . Recycled Matter 252 | . 252 . . Retrieved Matter . | . . . . Retrieved Components . | . . . . Parts Scanalyzed 2 | . . . 2 Part Schematics Acquired 1 | . . . 1 Parts Damaged 1 | . . . 1 Bothacking | -11 -10 -10 -9 ------------ Run | Yrd Mat Min Mat Used RIF Installer . | . . . . Robots Hacked . | . . . . Non-combat . | . . . . Combat . | . . . . Robot Hacks Applied . | . . . . Relay Couplers Released . | . . . . Fabnet Peak Effective % . | . . . . Robots Rewired . | . . . . Allies Hacked . | . . . . Hacks Repelled . | . . . . Allies | -11 -10 -10 -9 -------- Run | Yrd Mat Min Mat Total Allies . | . . . . Largest Group . | . . . . Highest-Rated Group . | . . . . Highest-Rated Ally . | . . . . Total Orders . | . . . . Ally Attacks . | . . . . Total Damage . | . . . . Kills . | . . . . Allies Corrupted . | . . . . Allies Melted . | . . . . Intel | -11 -10 -10 -9 ------- Run | Yrd Mat Min Mat Robot Analysis Total . | . . . . Derelict Logs Recovered . | . . . . Drone Launches . | . . . . Drone Recoveries . | . . . . Exploration | -11 -10 -10 -9 ------------- Run | Yrd Mat Min Mat Turns Passed 1839 | 117 526 295 901 Spaces Moved 1121 | 90 391 202 438 Core 33 | 22 . . 11 Treads 201 | . . . 201 Legs 887 | 68 391 202 226 Wheels . | . . . . Hover . | . . . . Flight . | . . . . Fastest Speed 50 | 50 120 120 120 Average Speed 134 | 102 120 120 159 Slowest Speed 250 | 120 120 120 250 Overloaded Moves . | . . . . Propulsion Burnouts . | . . . . Robots Hopped . | . . . . Cave-ins Triggered . | . . . . Exploration Rate (%) 33 | 6 51 43 33 Regions Visited 3 Branch Regions 1 Pre-discovered Areas . | . . . . Known Exits Taken . | . . . . Unknown Exits Taken 3 | 1 1 1 . Scrap Searched 1 | . . 1 . Spaces Dug . | . . . . Terrain Destroyed 43 | . 32 . 11 Melee . | . . . . Projectile . | . . . . AOE 43 | . 32 . 11 Terrain Rammed . | . . . . Walls Destroyed . | . . . . Machines Disabled . | . . . . Actions | -11 -10 -10 -9 --------- Run | Yrd Mat Min Mat Total 1302 | 111 425 226 540 Wait . | . . . . Move 1118 | 89 390 201 438 Hop . | . . . . Pick Up 39 | 12 9 3 15 Fast Attach . | . . . . Attach 21 | 6 2 2 11 Detach 2 | . . . 2 Swap 16 | . 6 1 9 Drop 14 | 2 4 1 7 Fire 92 | 2 14 18 58 Melee . | . . . . Ram . | . . . . Kick . | . . . . Crush . | . . . . Escape Stasis . | . . . . Rewire . | . . . . Trap . | . . . . Miscellaneous . | . . . . Route ------- -11/Scrapyard -10/Materials (discovered 2 exits: *Mat / [*Min]) -10/Mines (discovered 2 exits: *Mat x2) -9/Materials (discovered 2 exits: [*Sto x2]) History --------- Turn | Location | Event 2 | -11/Scrapyard | Met Revision 17 88 | -11/Scrapyard | Discovered new exit (range 8) 118 | -11/Scrapyard | Entered Materials 224 | -10/Materials | Repaired Aluminum Leg 250 | -10/Materials | Repaired Heat Sink 301 | -10/Materials | Build established: Mutant 336 | -10/Materials | Discovered new exit (range 8) 632 | -10/Materials | Discovered new exit (range 9) 644 | -10/Materials | Entered Mines 762 | -10/Mines | Discovered new exit (range 7) 809 | -10/Mines | Found a damaged Exp. Sensor Array with a note attached 812 | -10/Mines | Found Prototype Device 937 | -10/Mines | Discovered new exit (range 2) 939 | -10/Mines | Entered Materials 939 | -9/Materials | Evolved 2 slots: Propulsion x1, Utility x1 1052 | -9/Materials | Discovered new exit (range 4) 1269 | -9/Materials | Build established: Scavenger-Mutant 1354 | -9/Materials | Discovered new exit (range 17) 1486 | -9/Materials | Identified Exp. Sensor Array 1813 | -9/Materials | Core integrity fell below 50% 1836 | -9/Materials | Core integrity fell below 20% 1840 | -9/Materials | Destroyed by G-34 Mercenary with Small Laser Last Messages --------------- K-01 Serf collects debris. W-16 Scout sends out distress signal. ALERT: Hostiles spotted, dispatching reinforcements to Terminal M007. Lgt. Treads destroyed. Lgt. Armor Plating destroyed. W-16 Scout sends out distress signal. Ion Engine destroyed. Y-45 Defender destroyed. Med. Laser destroyed. Lgt. Treads destroyed. Critical hit (Burn: +37). Imp. Assault Rifle destroyed. G-34 Mercenary destroyed. Terminal disabled. Lgt. Assault Rifle destroyed. Destroyed Lgt. Assault Rifle. Grenade Launcher destroyed. U-05 Engineer builds a Wall. M-13 Machinist repairs Y-45 Defender. Map ----- +----------------------------------------------------+ | ?????????+ #????# T """ #?????????????????? | | ?????????# #????# """ #?????????????????? | | ?????????# #????# """ #?????????????????? | | ?????????# #????# #?????????????????? | | ?????????# ###### ! ! #?????????????????? | | ?????????# / #?????????????????? | | ?????????# ###### ] #?????????????????? | | ########## #????#####+#####?????????????????? | | # "" # #??????# #######+######??????? | | # ""S # !#??????# ????? | | # "" # *%######## ????? | | # # = ????? | | # # ######## ##+#########+#??????? | | # " " %# #??????## ##! #?????????????? | | # """ / #???????# ##%""" #?????????????? | | # " " # #???????# ##*""" #?????????????? | | # %= # #???????+ ## """ #?????????????? | | ########## ##??????# ## #?????????????? | | ????????# #??????# # #?????????????? | | ????????# #??????# # #?????????????? | | ????????# < #??????+ = #?????????????? | | ????????# #??????#+### %=%" #?????????????? | | ????????# #??????# #* #?????????????? | | ????????## ##??????# Ym #?????????????? | | ?????????# % #???????# gY## #?????????????? | | ?????????# #???????#@ ########?????????????? | | ?????????# #???????# #??????????########??? | | ?????????# #???????# #???######## #??? | | ?????????# #???????# #???# # """" #??? | | ?????????# #???????#####???# ! # """" #??? | | ??######## #???????????????# # """" #??? | | ??# # #???????????????# """ # #??? | | ??# # #???????????????# """ !# % #??? | | ??# """ / ###########?????# """ ####+###### | | ??# """ # # ###########+## | | ??# """ # # + | | ??# # # ######## | | ??######## # """ #??????# ####+####### | | ?????????# + """"" #??????# / #? | | ?????????# # """"" #????###+#### """ #? | | ?????????# # """"" #????# # """ #? | | ?????????# # """ #????# # """ #? | | ?????????# ###########????# """ # """ #? | | ?????????# #??????????????# """ # "Y #? | | ?????????#####??????????????# """ # """ !#? | | ????????????????????????????# # #? | | ????????????????????????????#############+####? | | ??????????????????????????????????????# ### | | ??????????????????????????????????????# | | ??????????????????????????????????????# < | +----------------------------------------------------+ Best States ------------- Heat Dissipation 38 Energy Generation 10 Energy Capacity 250 Matter Stores 400 Matter Capacity 400 Sight Range 18 Robot Scan Range 14 Terrain Scan Density 10 Armor Coverage 150 Evasion (%) 55 Recoil Reduction 3 Item Schematics ----------------- Imp. Assault Rifle | -9/Materials | Scanalyzed Robot Schematics ------------------ None Fabricated ------------ Nothing Alien Tech Used ----------------- None Achievements -------------- It's Just You Part-time Mechanic Safety First Challenges ------------ None Game ------ Seed RagnarokComponentUnit Manual? 0 Play Time 00:26:50 Cumulative 0.9 hours Start 2024.04.02 @ 15:08:04 End 2024.04.02 @ 15:32:30 Sessions 1 Manual Loads 0 Difficulty Rogue Special Mode None Game No. 2 Rogue 2 Adventurer 0 Explorer 0 Win Type - Total 0 Types 0/0/0/0/0/0/0/0/0 Lore% 1 Gallery% 3 Achievement% 3 Wizard Run 0 Options --------- Layout 1 ASCII 0 Keyboard 0 Movement Mouse Keybinds 0 Fullscreen 1 Font 32/SmallcapsGlow Map View 50x40 Zoom Use 0% Tactical HUD 0 Map Filters NONE Filters NONE Steam 1 RUN: 4e6d1082-e7a3-4a42-a991-bea108e21a1f